[Event "Marshall CC Premier 01-2025"]
[Site "New York"]
[Date "2025.01.05"]
[Round "4.2"]
[White "Rohde, Michael"]
[Black "Mottola, Max"]
[Result "1-0"]
[ECO "D02"]
[WhiteElo "2269"]
[BlackElo "2132"]
[Annotator "TA"]
[PlyCount "105"]
[EventDate "2025.01.03"]
[EventType "swiss"]
[EventCountry "USA"]
[SourceTitle "playchess.com"]
[Source "ChessBase"]
[SourceQuality "1"]
[TimeControl "5400+30"]

{[%evp 11,105,15,27,18,20,16,16,16,13,4,1,11,28,0,0,0,0,-1,-9,-9,-12,-25,-25,-21,-35,-40,-33,-38,-36,-40,-36,-72,-43,-69,-48,-83,-72,-94,-72,-79,-71,-78,-27,-33,-6,-29,26,15,35,33,44,42,49,34,68,77,143,106,112,107,229,213,219,223,223,198,237,235,217,183,193,185,216,212,193,167,172,165,241,241,237,227,456,450,5022,4822,5322,5310,5281,5114,29981,29982,29981,29982,29982,29981]} 1. Nf3 {[%emt 0:11:51]} d5 {[%emt 0:00:08]} 2. g3 {[%emt 0:00:26]} Nc6 {[%emt 0:01:55]} 3. d4 {[%emt 0:00:38]} Bf5 {[%emt 0:00:13]} 4. Bg2 {[%emt 0:01:45]} e6 {[%emt 0:01:26]} 5. O-O {[%emt 0:01:32]} Nb4 {[%emt 0:00:34]} 6. Na3 {[%emt 0:02:59]} Be7 {[%emt 0:01:23]} 7. c3 {[%emt 0:14:08]} Nc6 {[%emt 0:00:08]} 8. Qa4 {[%emt 0:04:35]} Qd7 {[%emt 0:03:02]} 9. b4 {[%emt 0:08:25] The position is equal.} Ne5 {[%emt 0:00:44]} 10. Qxd7+ {[%emt 0:01:35]} Nxd7 {[%emt 0:00:09]} 11. Nb5 {[%emt 0:02:42]} Kd8 {[%emt 0:01:01]} 12. Ng5 {[%emt 0:09:31]} Bg6 {[%emt 0:06:31]} 13. Bf4 {[%emt 0:03:02][%cal Og5e6] [#] Nxe6+! is the strong threat.} c6 {[%emt 0:07:04]} 14. Nd6 {[%emt 0:12:59]} Bxd6 {[%emt 0:13:11]} 15. Bxd6 {[%emt 0:00:09]} Ngf6 {[%emt 0:04:00]} 16. Rfc1 {[%emt 0:02:51]} Nb6 {[%emt 0:03:16]} 17. Nf3 {[%emt 0:00:55][%cal Bg5f3,Bf3e1,Be1d3,Bd3f4][%mdl 32]} Ne4 {[%emt 0:04:31] Inhibits Nd2.} 18. Bf4 {[%emt 0:00:45]} f6 {[%emt 0:04:46] Wards off Ne5} 19. Ne1 {[%emt 0:01:21]} Nc4 {[%emt 0:07:17]} 20. Nd3 {[%emt 0:00:22]} Ned6 {[%emt 0:06:43] Excellent horsemanship.} 21. f3 {[%emt 0:06:46]} Re8 {[%emt 0:01:36]} (21... a5 {keeps more tension.} 22. Nc5 e5 23. dxe5 fxe5 24. Bg5+ Kc8) 22. Bxd6 {[%emt 0:04:48]} Nxd6 {[%emt 0:00:07]} (22... Bxd3 $5 23. Bf8 Rxf8 (23... Bxe2 24. Bxg7 Ke7 25. Re1 $15) 24. exd3 Nd6 $16) 23. Nf4 {[%emt 0:01:28]} Bf7 {[%emt 0:08:54]} 24. Nd3 {[%emt 0:01:19]} e5 {[%emt 0:01:07]} 25. dxe5 {[%emt 0:00:28]} fxe5 {[%emt 0:00:06]} 26. e4 {[%emt 0:00:25]} Kc7 {[%emt 0:04:40]} (26... dxe4 $17 27. fxe4 Kc7) 27. exd5 $11 {[%emt 0:00:53]} cxd5 {[%emt 0:02:33]} 28. f4 {[%emt 0:01:28]} Nc4 {[%emt 0:00:52]} (28... e4 $142 29. Nc5 Nc4) 29. fxe5 {[%emt 0:00:37]} Nxe5 {[%emt 0:00:21]} 30. Rf1 {[%emt 0:00:33] [#] Threatens to win with Nxe5.} Bg8 {[%emt 0:02:00]} 31. Nf4 $36 {[%emt 0:00:13][%mdl 2048] White is pushing.} Rad8 {[%emt 0:02:03]} 32. Rad1 {[%emt 0:01:27][%cal Rg2d5]} (32. Rfd1 {simplifies} Ng4 33. Nxd5+ Bxd5 34. Rxd5 Rxd5 35. Bxd5 Re3 36. Rc1) 32... Kc6 {[%emt 0:02:44]} 33. Rd4 {[%emt 0:01:10] White is more active.} g5 {[%emt 0:01:35]} (33... Ng4 $142) 34. Nh5 {[%emt 0:00:15] aiming for Nf6.} Rf8 {[%emt 0:02:40]} 35. Nf6 {[%emt 0:00:39] Strongly threatening Nxg8.} Be6 {[%emt 0:02:10] Black cannot hold the game after this.} (35... Kc7 $16 {might work better.} 36. Nxg8 (36. Bxd5 Rxf6 37. Rxf6 Bxd5 $17) (36. Nxd5+ Bxd5 37. Rxf8 Rxf8 $18) 36... Rxf1+ 37. Kxf1 Rxg8) 36. c4 $1 $18 {[%emt 0:00:24][%cal Rc4d5]} (36. Nxh7 Rxf1+ 37. Kxf1 Nf7) 36... Kd6 {[%emt 0:02:59]} 37. cxd5 {[%emt 0:01:22]} Bd7 {[%emt 0:00:29]} 38. Ne4+ {[%emt 0:00:30]} (38. Nxh7 Rxf1+ 39. Kxf1 Bb5+ 40. Kg1 Rc8) 38... Kc7 {[%emt 0:00:30]} 39. Rxf8 {[%emt 0:01:18]} (39. Nxg5 Rxf1+ 40. Kxf1 h5 $18) 39... Rxf8 {[%emt 0:00:03]} 40. Nxg5 {[%emt 0:00:13]} h6 {[%emt 0:01:43]} 41. Ne4 {[%emt 0:00:45]} Nf3+ {[%emt 0:02:26]} 42. Bxf3 {[%emt 0:00:05]} Rxf3 {[%emt 0:00:03][%mdl 4096] Endgame. KRB-KRN} 43. Kg2 {[%emt 0:00:17]} Ra3 {[%emt 0:00:31]} 44. Rd2 {[%emt 0:00:17]} Ra4 {[%emt 0:01:01]} (44... Bf5 {was worth a try.} 45. Nf6 Kd6) 45. Rc2+ {[%emt 0:01:15]} Kd8 {[%emt 0:00:14]} 46. Rb2 {[%emt 0:00:15]} a5 $2 {[%emt 0:01:06]} (46... Ra3 47. Nd6 Kc7) 47. Nc5 {[%emt 0:00:22][%csl LRa4,LRb7]} Rxb4 {[%emt 0:00:08]} (47... Ra3 $142 48. Nxb7+ Kc7 49. Nxa5 Bf5) 48. Rxb4 {[%emt 0:00:05]} (48. Nxb7+ Kc7 49. Rxb4 (49. Nxa5 $2 {too greedy.} Rxb2+ 50. Kf3 Rb4 $19) 49... axb4 $16) 48... axb4 {[%emt 0:00:06]} 49. Nxd7 {[%emt 0:00:04]} ({Weaker is} 49. Nxb7+ Kc7 50. Na5 (50. Nc5 Bb5 $11) 50... Kd6 $18) 49... Kxd7 {[%emt 0:00:05] KP-KP} 50. Kf3 {[%emt 0:00:03] Ke4 would kill now.} Kd6 {[%emt 0:00:07]} 51. Ke4 {[%emt 0:00:04] White mates.} h5 {[%emt 0:00:44]} 52. Kd4 {[%emt 0:00:10]} b5 {[%emt 0:00:07]} 53. h3 {[%emt 0:00:06] Weighted Error Value: White=0.08 (flawless) /Black=0.30.  Mistake:       	---       	Black=7      Inaccurate:     	White=4     	Black=3      OK:         	White=16    	Black=15     Best:        	White=5     	Black=5      Strong:       	White=1     	---} 1-0

[Event "Marshall CC Premier 01-2025"]
[Site "New York"]
[Date "2025.01.05"]
[Round "4.3"]
[White "Zhu, Linxi"]
[Black "Ayyappan, Santhosh"]
[Result "0-1"]
[ECO "C90"]
[WhiteElo "2125"]
[BlackElo "2019"]
[Annotator "TA"]
[PlyCount "96"]
[EventDate "2025.01.03"]
[EventType "swiss"]
[EventCountry "USA"]
[SourceTitle "playchess.com"]
[Source "ChessBase"]
[SourceQuality "1"]
[TimeControl "5400+30"]

{[%evp 20,96,43,37,53,45,59,62,62,66,63,54,51,53,50,55,55,42,106,115,94,64,73,63,88,61,69,74,89,39,52,4,13,6,-12,-12,-5,0,0,-30,-33,-50,-36,-37,-33,-30,-36,-27,-31,-30,-33,-110,-124,-122,-111,-122,-107,-127,-124,-110,-110,-160,-162,-153,-162,-274,-104,-88,-95,-209,0,-849,-1334,-1329,-1016,-29975,-29974,-1947,-324]} 1. e4 {[%emt 0:00:00]} e5 {[%emt 0:14:29]} 2. Nf3 {[%emt 0:00:08]} Nc6 {[%emt 0:00:23]} 3. Bb5 {[%emt 0:00:48]} a6 {[%emt 0:00:05]} 4. Ba4 {[%emt 0:00:08]} Nf6 {[%emt 0:00:05]} 5. O-O {[%emt 0:00:06]} b5 {[%emt 0:00:03]} 6. Bb3 {[%emt 0:00:03]} Be7 {[%emt 0:00:05]} 7. Re1 {[%emt 0:00:04]} d6 {[%emt 0:00:05]} 8. c3 {[%emt 0:00:04]} Na5 {[%emt 0:00:03]} 9. Bc2 {[%emt 0:00:04]} c5 {[%emt 0:00:04]} 10. d4 {[%emt 0:00:03]} Qc7 {[%emt 0:00:04]} 11. d5 {[%emt 0:00:05]} Nc4 {[%emt 0:00:04]} 12. b3 {[%emt 0:00:03]} Nb6 {[%emt 0:00:03]} 13. a4 {[%emt 0:00:07][%cal Ba2a4,Ba4a5][%mdl 32]} Bd7 {[%emt 0:00:05] White is slightly better.} 14. a5 {[%emt 0:03:24]} Nc8 {[%emt 0:01:09]} 15. c4 {[%emt 0:00:43]} b4 {[%emt 0:01:25]} 16. Nbd2 {[%emt 0:00:09][%cal Bb1d2,Bd2f1,Bf1g3][%mdl 32]} O-O {[%emt 0:01:46]} 17. Nf1 {[%emt 0:00:16]} Ne8 {[%emt 0:01:35]} 18. h3 {[%emt 0:02:36]} g6 {[%emt 0:03:26]} (18... Bf6 $14) 19. Bh6 $16 {[%emt 0:02:52]} Ng7 {[%emt 0:00:04]} 20. Ng3 {[%emt 0:00:51]} Bf6 {[%emt 0:01:59]} 21. Nh2 {[%emt 0:04:40]} Qd8 {[%emt 0:02:03]} 22. Qd2 {[%emt 0:01:36] Prevents Bg5} Bh4 {[%emt 0:02:01]} 23. Nf3 {[%emt 0:04:08] aiming for Nxh4.} Bf6 {[%emt 0:02:12]} 24. Kh2 {[%emt 0:00:31]} (24. Ne2 $16) 24... Kh8 $14 {[%emt 0:00:24]} 25. Rg1 {[%emt 0:01:27]} (25. Qc1 $14) 25... Ne7 $11 {[%emt 0:03:18]} 26. Nf1 {[%emt 0:03:19]} Ng8 {[%emt 0:13:09]} 27. Be3 {[%emt 0:00:08]} Be7 {[%emt 0:00:13]} 28. g4 {[%emt 0:02:36]} f5 {[%emt 0:03:41]} 29. gxf5 {[%emt 0:00:29]} gxf5 {[%emt 0:00:21]} 30. Bh6 {[%emt 0:07:55]} Bf6 {[%emt 0:05:25]} 31. Ng3 {[%emt 0:11:51]} (31. Bxg7+ Bxg7 32. Ng3 Bh6) 31... f4 {[%emt 0:02:13]} 32. Bxg7+ {[%emt 0:00:35]} Bxg7 {[%emt 0:00:35]} 33. Nf5 {[%emt 0:00:01]} Bxf5 {[%emt 0:01:36]} 34. exf5 {[%emt 0:00:05]} Bf6 {[%emt 0:00:19][%cal Oe5e4] Wards off Ng5} 35. Qe2 {[%emt 0:02:27] [#]} ({White should play} 35. Rae1 $15) 35... e4 $1 $17 {[%emt 0:09:04][%mdl 512]} 36. Bxe4 {[%emt 0:04:48]} Bxa1 {[%emt 0:00:08]} 37. Rxa1 {[%emt 0:00:01]} Qf6 {[%emt 0:06:49]} 38. Rg1 {[%emt 0:00:07]} Nh6 $36 {[%emt 0:09:12][%cal Of8g8][%mdl 2048] Black is in control.} 39. Ng5 {[%emt 0:06:41]} Rg8 {[%emt 0:02:00]} 40. Qh5 {[%emt 0:00:36]} (40. h4 $142) 40... Rg7 $1 {[%emt 0:00:56][%cal Oa8g8]} 41. h4 {[%emt 0:04:50]} Rag8 {[%emt 0:01:47][%cal Oh6f7]} 42. Qf3 {[%emt 0:02:53]} (42. Kh3 $142) 42... Qe5 $2 {[%emt 0:01:43]} (42... Nf7 $19 {[%cal Rf7g5] is more deadly.} 43. Nxf7+ Qxf7 44. Rxg7 Qxg7 45. Qxf4 Qg4 46. Qxg4 Rxg4) 43. Qh5 {[%emt 0:04:21]} f3+ $1 {[%emt 0:02:56]} (43... Nxf5 44. Nf7+ Rxf7 45. Qxf7 f3+ (45... Qxe4 46. Rxg8#) 46. Kh1 Rxg1+ 47. Kxg1 Qg7+ (47... Qa1+ $2 48. Kh2 $18) 48. Qxg7+ Nxg7 49. Kh2 $18 (49. Bxf3 Nf5 $11)) 44. Kh1 {[%emt 0:00:01] [#]} (44. Kh3 $17 Qf6 (44... Nxf5 45. Bd3 $11) 45. Rg3) 44... Qxe4 $2 {[%emt 0:00:45]} (44... Nxf5 $2 {is the wrong capture.} 45. Nf7+ Rxf7 46. Qxf7 $18) (44... Qf6 $1 $19 {[%mdl 512] White must now prevent ...Nf7.} 45. Qxf3 Nf7 46. Nxf7+ Qxf7 (46... Rxf7 $2 47. Qf4 $19)) 45. f6 $2 {[%emt 0:00:07][%mdl 8192] [#]} (45. Nxe4 $2 {is a self mate.} Rxg1+ 46. Kh2 R8g2+ 47. Kh3 Rh1#) (45. Qxh6 $11 Qxf5 46. Qxd6) 45... Rxg5 $1 $19 {[%emt 0:01:47]} 46. hxg5 {[%emt 0:00:16] [#]} Nf7 $1 {[%emt 0:01:11][%mdl 512] ...Rg6 is the strong threat.} 47. Rg3 {[%emt 0:04:07]} (47. Qg4 Qg6) 47... Qe1+ {[%emt 0:01:56]} 48. Rg1 {[%emt 0:00:01] [#]} Qxg1+ $3 {[%emt 0:00:16][%mdl 512] Weighted Error Value: White=0.48/Black=0.18 (very precise) .  Loses game:     	White=1     	---        Missed win:     	---       	Black=2      Mistake:       	White=6     	Black=1      Inaccurate:     	White=3     	---        OK:         	White=15    	Black=19     Best:        	White=2     	---        Strong:       	---       	Black=2      Brilliant:      	---       	Black=2} 0-1

[Event "Marshall CC Premier 01-2025"]
[Site "New York"]
[Date "2025.01.05"]
[Round "4.5"]
[White "Belenky, Nicholas"]
[Black "Hebbar, Eshaan"]
[Result "0-1"]
[ECO "C78"]
[WhiteElo "1977"]
[BlackElo "2144"]
[Annotator "TA"]
[PlyCount "112"]
[EventDate "2025.01.03"]
[EventType "swiss"]
[EventCountry "USA"]
[SourceTitle "playchess.com"]
[Source "ChessBase"]
[SourceQuality "1"]
[TimeControl "5400+30"]

{[%evp 21,112,0,17,19,27,26,32,11,10,-5,-4,-7,-12,-7,-7,-31,-22,-36,-52,-112,-110,-114,-132,-110,-108,-169,-168,-211,-201,-277,-281,-276,-245,-331,-227,-231,-235,-225,-173,-160,-187,-232,-186,-222,0,-108,-108,-487,-487,-373,-487,-466,-487,-488,-478,-468,-476,-520,-472,-521,-477,-502,-543,-488,-470,-473,-464,-571,-455,-455,-444,-444,-444,-444,-437,-522,-337,-512,-337,-677,-714,-695,-668,-693,-577,-1447,-1382,-1571,-1532,-1779,-1964,-1438,-1294]} 1. e4 {[%emt 0:00:02]} e5 {[%emt 0:02:35]} 2. Nf3 {[%emt 0:00:08]} Nc6 {[%emt 0:00:22]} 3. Bb5 {[%emt 0:00:10]} a6 {[%emt 0:00:32]} 4. Ba4 {[%emt 0:00:10]} Nf6 {[%emt 0:00:03]} 5. O-O {[%emt 0:00:11]} b5 {[%emt 0:00:03]} 6. Bb3 {[%emt 0:00:06]} Bc5 {[%emt 0:00:02]} 7. c3 {[%emt 0:00:17]} d6 {[%emt 0:00:03]} 8. d4 {[%emt 0:00:17]} Bb6 {[%emt 0:00:04]} 9. Be3 {[%emt 0:00:31]} O-O {[%emt 0:02:01]} 10. Nbd2 {[%emt 0:01:23]} h6 {[%emt 0:03:12]} 11. h3 {[%emt 0:01:16]} Re8 {[%emt 0:02:13]} 12. Re1 {[%emt 0:01:58]} Na5 {[%emt 0:02:04]} 13. Bc2 {[%emt 0:01:20]} c5 {[%emt 0:00:52]} 14. a4 {[%emt 0:08:36]} Rb8 {[%emt 0:14:53]} 15. d5 {[%emt 0:06:47]} c4 {[%emt 0:00:34]} 16. Nf1 {[%emt 0:05:26]} Bxe3 {[%emt 0:01:19]} 17. Nxe3 {[%emt 0:00:21]} Nb7 {[%emt 0:01:23]} 18. axb5 {[%emt 0:05:24]} axb5 {[%emt 0:00:02]} 19. g4 {[%emt 0:07:39]} Nc5 {[%emt 0:01:35]} 20. Nf5 {[%emt 0:01:04]} ({Better is} 20. Nd2 $15) 20... Bxf5 $17 {[%emt 0:04:47]} 21. gxf5 {[%emt 0:00:34]} Ra8 {[%emt 0:01:59]} 22. Rb1 {[%emt 0:09:38]} Nh5 $36 {[%emt 0:08:54][%cal Bf6h5,Bh5f4,Bf4h3][%mdl 2080] Black has strong initiative. Black is more active.} 23. Nd2 {[%emt 0:06:50]} (23. Kh2 $17 {might work better.}) 23... Nf4 $19 {[%emt 0:03:01]} ({Don't play} 23... Qg5+ 24. Kh2 $17) 24. Qg4 {[%emt 0:01:18] [#]} Nxh3+ $1 {[%emt 0:09:14][%mdl 512] A dynamic duo of knights.} 25. Kf1 {[%emt 0:14:18]} (25. Qxh3 Qg5+) 25... Nf4 {[%emt 0:01:03]} 26. Nf3 {[%emt 0:01:11]} Qf6 {[%emt 0:03:34]} 27. Nh4 {[%emt 0:07:19]} Qg5 {[%emt 0:00:53]} 28. Qxg5 {[%emt 0:00:24]} hxg5 {[%emt 0:00:02]} 29. Ng2 {[%emt 0:00:14]} Nxg2 {[%emt 0:02:10]} 30. Kxg2 {[%emt 0:00:06]} Ra2 {[%emt 0:00:58]} 31. Rec1 {[%emt 0:01:00]} Rc8 {[%emt 0:01:47]} 32. f3 {[%emt 0:01:57]} Na4 {[%emt 0:01:52]} (32... Kf8 $19 33. Rh1 Ke7) 33. Bxa4 $17 {[%emt 0:02:16]} bxa4 $11 {[%emt 0:00:03][%mdl 4096] Endgame KRR-KRR. Black is a pawn up.} 34. Ra1 $2 {[%emt 0:01:43][%mdl 8192]} (34. Kg3 $17 {is a better chance.}) 34... Rxb2+ $19 {[%emt 0:00:07]} 35. Kg3 {[%emt 0:00:05]} Ra8 {[%emt 0:00:14]} 36. Ra3 {[%emt 0:00:10]} Rb3 {[%emt 0:00:12]} 37. Rca1 {[%emt 0:00:11]} Rxa3 {[%emt 0:00:31]} 38. Rxa3 {[%emt 0:00:09] KR-KR. Black is two pawns up.} f6 {[%emt 0:00:44]} 39. Kg4 {[%emt 0:00:14]} Kf7 {[%emt 0:00:05]} 40. Kh5 {[%emt 0:00:08]} Ra7 {[%emt 0:00:09]} 41. Kg4 {[%emt 0:00:25]} g6 {[%emt 0:00:06]} 42. Kg3 {[%emt 0:00:14]} gxf5 {[%emt 0:01:31]} 43. exf5 {[%emt 0:00:05]} Kg7 {[%emt 0:03:02]} 44. Kh3 {[%emt 0:03:03]} Ra5 {[%emt 0:00:21]} 45. Kg3 {[%emt 0:01:38]} Kh7 {[%emt 0:00:38]} (45... Rxd5 46. Rxa4 Rc5 47. Kf2 $19) 46. Kh3 {[%emt 0:02:05]} Kh6 {[%emt 0:04:34]} (46... Rxd5 47. Rxa4 Rc5 48. Ra7+ Kh6 49. Rf7 $17) 47. Kg4 {[%emt 0:00:28]} Ra8 {[%emt 0:00:22]} (47... Rxd5 $2 48. Rxa4 Rd1 49. Rxc4 $19) 48. Kg3 {[%emt 0:01:03]} Ra7 {[%emt 0:00:04]} 49. Kg4 {[%emt 0:00:10]} (49. Ra2 $142) 49... Ra5 {[%emt 0:00:17]} 50. Kg3 $2 {[%emt 0:00:28]} (50. Ra2) 50... Rxd5 {[%emt 0:00:58]} 51. Rxa4 {[%emt 0:00:07] [#]} e4 $1 {[%emt 0:01:20]} 52. fxe4 {[%emt 0:01:05]} Rd3+ {[%emt 0:00:04]} 53. Kf2 {[%emt 0:01:24]} Rxc3 {[%emt 0:00:08]} 54. Ke2 {[%emt 0:00:15]} g4 {[%emt 0:00:12] And now ...g3 would win.} 55. Kd2 {[%emt 0:00:19]} Rd3+ {[%emt 0:00:25]} 56. Ke2 {[%emt 0:00:14]} d5 {[%emt 0:00:23]} 0-1

[Event "Marshall CC Premier 01-2025"]
[Site "New York"]
[Date "2025.01.05"]
[Round "4.6"]
[White "Karas, Nicholas"]
[Black "Nkululeko, Nkosi"]
[Result "1/2-1/2"]
[ECO "A04"]
[WhiteElo "2042"]
[BlackElo "1970"]
[Annotator "RC"]
[PlyCount "141"]
[EventDate "2025.01.03"]
[EventType "swiss"]
[EventCountry "USA"]
[SourceTitle "playchess.com"]
[Source "ChessBase"]
[SourceQuality "1"]
[TimeControl "5400+30"]

1. Nf3 {[%emt 0:13:19]} b5 {[%emt 0:03:00]} 2. e3 {[%emt 0:02:20]} a6 {[%emt 0:00:07]} 3. b3 {[%emt 0:00:56]} Nf6 {[%emt 0:00:29]} 4. Bb2 {[%emt 0:00:11]} c5 {[%emt 0:00:43]} 5. Be2 {[%emt 0:01:29]} e6 {[%emt 0:00:11]} 6. a4 {[%emt 0:01:29]} b4 {[%emt 0:00:11]} 7. O-O {[%emt 0:02:29]} Bb7 {[%emt 0:00:12]} 8. c4 {[%emt 0:06:13]} d6 {[%emt 0:01:17]} 9. d4 {[%emt 0:02:09]} Nbd7 {[%emt 0:00:06]} 10. Nbd2 {[%emt 0:00:45]} Be7 {[%emt 0:01:40]} 11. Qc2 {[%emt 0:04:06]} Qc7 {[%emt 0:00:15]} 12. Rac1 {[%emt 0:03:54]} O-O {[%emt 0:07:40]} 13. Qb1 {[%emt 0:02:00]} e5 {[%emt 0:10:03]} 14. Qa1 {[%emt 0:06:55]} e4 {[%emt 0:01:10]} 15. Ne1 {[%emt 0:02:05]} Rfe8 {[%emt 0:14:36]} 16. d5 {[%emt 0:05:47]} Bf8 {[%emt 0:00:32]} 17. Kh1 {[%emt 0:05:25]} h5 {[%emt 0:01:21]} 18. g3 {[%emt 0:03:31]} Qd8 {[%emt 0:06:23]} 19. Ng2 {[%emt 0:01:42]} Bc8 {[%emt 0:04:22]} 20. Nf4 {[%emt 0:01:44]} g6 {[%emt 0:00:13]} 21. Qb1 {[%emt 0:02:45]} Qe7 {[%emt 0:04:25]} 22. h4 {[%emt 0:03:12]} Bh6 {[%emt 0:01:10]} 23. Rce1 {[%emt 0:02:27]} Nh7 {[%emt 0:13:51]} 24. Rg1 {[%emt 0:00:49]} Ndf8 {[%emt 0:01:55]} 25. Bf1 {[%emt 0:00:44]} Bg4 {[%emt 0:00:59]} 26. Be2 {[%emt 0:05:36]} f5 {[%emt 0:07:37]} 27. Nf1 {[%emt 0:02:08]} Bg7 {[%emt 0:00:49]} 28. Nh2 {[%emt 0:02:29]} Bxb2 {[%emt 0:00:25]} 29. Qxb2 {[%emt 0:00:04]} Qg7 {[%emt 0:00:12]} 30. Qd2 {[%emt 0:01:00]} Nf6 {[%emt 0:00:22]} 31. Bf1 {[%emt 0:01:04]} N6d7 {[%emt 0:00:50]} 32. Bg2 {[%emt 0:00:36]} Ne5 {[%emt 0:02:42]} 33. Nxg4 {[%emt 0:04:29]} hxg4 {[%emt 0:00:19]} 34. Kh2 {[%emt 0:06:36]} Ra7 {[%emt 0:00:10]} 35. Rh1 {[%emt 0:00:17]} Qf6 {[%emt 0:00:21]} 36. Kg1 {[%emt 0:00:54]} Rh7 {[%emt 0:00:12]} 37. Kf1 {[%emt 0:01:38]} a5 {[%emt 0:02:11]} 38. Ke2 {[%emt 0:00:21]} Nf3 {[%emt 0:00:31]} 39. Bxf3 {[%emt 0:00:24]} exf3+ {[%emt 0:00:06]} 40. Kd3 {[%emt 0:00:35]} Re4 {[%emt 0:02:08]} 41. Kc2 {[%emt 0:00:14]} Kf7 {[%emt 0:00:32]} 42. Kb1 {[%emt 0:04:39]} Ke8 {[%emt 0:00:49]} 43. Rd1 {[%emt 0:00:00]} Kd7 {[%emt 0:00:22]} 44. Qb2 {[%emt 0:00:00]} Qxb2+ {[%emt 0:01:01]} 45. Kxb2 {[%emt 0:00:00]} Rh6 {[%emt 0:00:19]} 46. Kc2 {[%emt 0:00:00]} Rh7 {[%emt 0:05:25]} 47. Kd3 {[%emt 0:00:00]} Ke8 {[%emt 0:01:44]} 48. Rhg1 {[%emt 0:00:00]} Kf7 {[%emt 0:00:33]} 49. Kc2 {[%emt 0:00:00]} Kf6 {[%emt 0:00:39]} 50. Rh1 {[%emt 0:00:01]} Rhe7 {[%emt 0:00:34]} 51. Rh2 {[%emt 0:00:46]} Re8 {[%emt 0:01:12]} 52. Rhh1 {[%emt 0:00:19]} Kg7 {[%emt 0:00:26]} 53. Rd2 {[%emt 0:00:16]} Kh6 {[%emt 0:00:13]} 54. Rhd1 {[%emt 0:00:20]} Rxf4 {[%emt 0:01:57]} 55. exf4 {[%emt 0:00:33]} Nd7 {[%emt 0:01:25]} 56. Rf1 {[%emt 0:00:32]} Nf6 {[%emt 0:00:04]} 57. Rdd1 {[%emt 0:00:37]} Re2+ {[%emt 0:00:22]} 58. Rd2 {[%emt 0:00:19]} Re7 {[%emt 0:01:34]} 59. Rdd1 {[%emt 0:00:09]} Re2+ {[%emt 0:01:07]} 60. Rd2 {[%emt 0:00:03]} Re8 {[%emt 0:00:06]} 61. Rdd1 {[%emt 0:00:06]} Ne4 {[%emt 0:00:47]} 62. Rde1 {[%emt 0:00:27]} Kg7 {[%emt 0:00:04]} 63. Rg1 {[%emt 0:00:26]} Kf7 {[%emt 0:00:08]} 64. Rgf1 {[%emt 0:00:24]} Re7 {[%emt 0:00:55]} 65. Kb2 {[%emt 0:00:46]} Kg7 {[%emt 0:00:08]} 66. Kc2 {[%emt 0:00:48]} Kf6 {[%emt 0:00:07]} 67. Kc1 {[%emt 0:00:36]} Rh7 {[%emt 0:00:42]} 68. Kc2 {[%emt 0:01:56]} Rh8 {[%emt 0:02:38]} 69. Kd3 {[%emt 0:00:53]} Re8 {[%emt 0:00:06]} 70. Kc2 {[%emt 0:00:10]} Kf7 {[%emt 0:00:05]} 71. Kc1 {[%emt 0:00:54]} 1/2-1/2

[Event "Marshall CC Premier 01-2025"]
[Site "New York"]
[Date "2025.01.05"]
[Round "4.7"]
[White "Hyatt, Jessica"]
[Black "Cheung, Kyle"]
[Result "1-0"]
[ECO "D36"]
[WhiteElo "1979"]
[BlackElo "1860"]
[Annotator "RC"]
[PlyCount "71"]
[EventDate "2025.01.03"]
[EventType "swiss"]
[EventCountry "USA"]
[SourceTitle "playchess.com"]
[Source "ChessBase"]
[SourceQuality "1"]
[TimeControl "5400+30"]

1. d4 {[%emt 0:37:46]} d5 {[%emt 0:00:01]} 2. c4 {[%emt 0:00:04]} e6 {[%emt 0:00:04]} 3. Nf3 {[%emt 0:00:03]} Nf6 {[%emt 0:00:06]} 4. Nc3 {[%emt 0:00:08]} Be7 {[%emt 0:00:03]} 5. cxd5 {[%emt 0:00:06]} exd5 {[%emt 0:00:05]} 6. Bg5 {[%emt 0:00:05]} h6 {[%emt 0:01:34]} 7. Bh4 {[%emt 0:00:09]} c6 {[%emt 0:00:32]} 8. Qc2 {[%emt 0:00:26]} O-O {[%emt 0:01:10]} 9. e3 {[%emt 0:00:24]} Ne4 {[%emt 0:06:11]} 10. Bxe7 {[%emt 0:00:24]} Qxe7 {[%emt 0:00:02]} 11. Bd3 {[%emt 0:00:06]} Re8 {[%emt 0:07:35]} 12. O-O {[%emt 0:02:30]} Bf5 {[%emt 0:04:12]} 13. Ne5 {[%emt 0:02:23]} Nd7 {[%emt 0:04:17]} 14. f3 {[%emt 0:04:19]} Nxe5 {[%emt 0:04:44]} 15. dxe5 {[%emt 0:00:48]} Nxc3 {[%emt 0:00:16]} 16. Bxf5 {[%emt 0:00:05]} Nb5 {[%emt 0:00:55]} 17. f4 {[%emt 0:00:37]} f6 {[%emt 0:07:25]} 18. Bh7+ {[%emt 0:07:30]} Kh8 {[%emt 0:00:39]} 19. a4 {[%emt 0:01:23]} Nc7 {[%emt 0:01:25]} 20. Bg6 {[%emt 0:02:06]} Rf8 {[%emt 0:01:33]} 21. Qc3 {[%emt 0:00:06]} fxe5 {[%emt 0:06:58]} 22. fxe5 {[%emt 0:03:10]} Rxf1+ {[%emt 0:04:24]} 23. Rxf1 {[%emt 0:00:23]} Rf8 {[%emt 0:00:02]} 24. Rxf8+ {[%emt 0:04:42]} Qxf8 {[%emt 0:00:04]} 25. Qa5 {[%emt 0:07:15]} Qe7 {[%emt 0:22:29]} 26. Qxa7 {[%emt 0:00:38]} Ne6 {[%emt 0:00:51]} 27. a5 {[%emt 0:12:29]} Nf8 {[%emt 0:06:03]} 28. Qb8 {[%emt 0:06:25]} Kg8 {[%emt 0:01:03]} 29. Qe8 {[%emt 0:03:13]} Qxe8 {[%emt 0:04:30]} 30. Bxe8 {[%emt 0:00:06]} Ne6 {[%emt 0:00:15]} 31. Bd7 {[%emt 0:00:11]} Nd8 {[%emt 0:00:01]} 32. Bc8 {[%emt 0:00:31]} c5 {[%emt 0:09:09]} 33. Bxb7 {[%emt 0:00:12]} d4 {[%emt 0:00:01]} 34. Bd5+ {[%emt 0:00:29]} Kf8 {[%emt 0:00:10]} 35. exd4 {[%emt 0:00:02]} cxd4 {[%emt 0:00:04]} 36. a6 {[%emt 0:00:05]} 1-0